{"text_format":"1","workbook":"xlsx","n_sheets":8,"sheets":["Home","Meubilair","Tafellinnen","Glaswerk","Bestek","Servies","Overig","bestellijst"],"not_rendered":{"charts":0,"images":7,"macros":1,"external_links":0,"defined_names":1,"comments":0,"pivot_tables":0},"unopened":[],"bounds":{"document_bytes":16777216,"sheet_cells":100000,"rows_first":2000,"rows_last":500,"rows_between":2000,"halvings":0,"cell_chars":16384,"cell_head_chars":4096},"cells_cut":0,"cells_raw":0,"read":"whole","date_system":"1900"}

{"sheet":"Home","index":0,"n_rows":3,"n_cols":3,"rows_kept":3,"cut":false,"hidden":false,"merged":[]}
[]
[]
[null,null,"Webshop Horeca"]

{"sheet":"Meubilair","index":1,"n_rows":25,"n_cols":7,"rows_kept":25,"cut":false,"hidden":false,"merged":[[2,2,2,6]]}
[]
[]
[null,null,"Meubilair"]
[]
[]
[]
[]
[]
[]
[]
[]
[]
[]
[]
[null,null,"artikel","eenheid","prijs per eenheid","aantal","totaal"]
[null,null,"tafel rechthoek standaard (2 personen)","per stuk",10.3,null,{"$f":"F16*E16","v":0}]
[null,null,"tafel rechthoek gold (2 personen)","per stuk",11.15,null,{"$f":"F17*E17","v":0}]
[null,null,"tafel rechthoek standaard (4 personen)","per stuk",12.8,null,0]
[null,null,"tafel rechthoek gold (4 personen)","per stuk",13.6,null,0]
[null,null,"tafel rond standaard (6 personen)","per stuk",15.5,null,0]
[null,null,"tafel rond gold (6 personen)","per stuk",16.399999999999999,null,0]
[null,null,"stoel Evi met armleuning (stapelbaar)","per stuk",4.2,null,0]
[null,null,"stoel Evi zonder armleuning (stapelbaar)","per stuk",3.2,null,0]
[null,null,"stoel Ara met armleuning (stapelbaar)","per stuk",4.0999999999999996,null,0]
[null,null,"stoel Ara zonder armleuning (stapelbaar)","per stuk",3.1,null,0]

{"sheet":"Tafellinnen","index":2,"n_rows":22,"n_cols":7,"rows_kept":22,"cut":false,"hidden":false,"merged":[[2,2,2,6]]}
[]
[]
[null,null,"Tafellinnen"]
[]
[]
[]
[]
[]
[]
[]
[]
[]
[]
[]
[null,null,"artikel","eenheid","prijs per eenheid","aantal","totaal"]
[null,null,"servetten papier (20/20 cm)","100 stuks",1.6,null,{"$f":"F16*E16","v":0}]
[null,null,"servetten papier (30/30 cm)","80 stuks",2.35,null,{"$f":"F17*E17","v":0}]
[null,null,"servetten linnen (25/25 cm)","20 stuks",22,null,0]
[null,null,"servetten linnen (30/30 cm)","20 stuks",28,null,0]
[null,null,"tafellakens linnen (120/120 cm)","5 stuks",22.4,null,0]
[null,null,"tafellaken linnen (120/160 cm)","5 stuks",24.6,null,0]
[null,null,"tafellaken linnen (120/180 cm)","5 stuks",26.75,null,0]

{"sheet":"Glaswerk","index":3,"n_rows":23,"n_cols":7,"rows_kept":23,"cut":false,"hidden":false,"merged":[[2,2,2,6]]}
[]
[]
[null,null,"Glaswerk"]
[]
[]
[]
[]
[]
[]
[]
[]
[]
[]
[]
[null,null,"artikel","eenheid","prijs per eenheid","aantal","totaal"]
[null,null,"limonadeglas Victor (23 cl)","20 stuks",4,null,{"$f":"F16*E16","v":0}]
[null,null,"limonadeglas Demi 3 (5 cl)","16 stuks",4.2,null,{"$f":"F17*E17","v":0}]
[null,null,"waterglas blauw (32 cl)","16 stuks",3.8,null,0]
[null,null,"waterglas groen (32 cl)","20 stuks",4.2,null,0]
[null,null,"wijnglas Bordeaux (28 cl)","8 stuks",6.4,null,0]
[null,null,"wijnglas Bourgogne (40 cl)","8 stuks",7.2,null,0]
[null,null,"waterkaraf Plaza (½ liter)","1 stuks",1.25,null,0]
[null,null,"waterkaraf Plaza (1 liter)","1 stuks",1.75,null,0]

{"sheet":"Bestek","index":4,"n_rows":26,"n_cols":7,"rows_kept":26,"cut":false,"hidden":false,"merged":[[2,2,2,6]]}
[]
[]
[null,null,"Bestek"]
[]
[]
[]
[]
[]
[]
[]
[]
[]
[]
[]
[null,null,"artikel","eenheid","prijs per eenheid","aantal","totaal"]
[null,null,"mes medium","10 stuks",1.8,null,{"$f":"F16*E16","v":0}]
[null,null,"mes groot","10 stuks",1.9,null,{"$f":"F17*E17","v":0}]
[null,null,"vork medium","10 stuks",1.8,null,0]
[null,null,"vork groot","10 stuks",1.9,null,0]
[null,null,"mes en vork medium","per set",0.32,null,0]
[null,null,"mes en vork groot","per set",0.35,null,0]
[null,null,"lepel medium","10 stuks",1.8,null,0]
[null,null,"lepel groot","10 stuks",1.9,null,0]
[null,null,"dessertmes","10 stuks",1.4,null,0]
[null,null,"dessertvork","10 stuks",1.4,null,0]
[null,null,"dessertlepel","10 stuks",1.4,null,0]

{"sheet":"Servies","index":5,"n_rows":25,"n_cols":7,"rows_kept":25,"cut":false,"hidden":false,"merged":[[2,2,2,6]]}
[]
[]
[null,null,"Servies"]
[]
[]
[]
[]
[]
[]
[]
[]
[]
[]
[]
[null,null,"artikel","eenheid","prijs per eenheid","aantal","totaal"]
[null,null,"side-plate porselein (ø 12 cm)","per stuk",0.22,null,{"$f":"F16*E16","v":0}]
[null,null,"plat bord porselein (ø 22 cm)","per stuk",0.25,null,{"$f":"F17*E17","v":0}]
[null,null,"plat bord porselein (ø 26 cm)","per stuk",0.28000000000000003,null,0]
[null,null,"diep bord porselein (ø 26 cm)","per stuk",0.28000000000000003,null,0]
[null,null,"schaaltje porselein (ø 16 cm)","per stuk",0.45,null,0]
[null,null,"saucière porselein","per stuk",0.5,null,0]
[null,null,"bord terracotta (ø 22 cm)","per stuk",0.45,null,0]
[null,null,"schaaltje terracotta (ø 16 cm)","per stuk",0.65,null,0]
[null,null,"schaaltje terracotta (ø 18 cm)","per stuk",0.75,null,0]
[null,null,"saucière terracotta","per stuk",0.7,null,0]

{"sheet":"Overig","index":6,"n_rows":23,"n_cols":7,"rows_kept":23,"cut":false,"hidden":false,"merged":[[2,2,2,6]]}
[]
[]
[null,null,"Overig"]
[]
[]
[]
[]
[]
[]
[]
[]
[]
[]
[]
[null,null,"artikel","eenheid","prijs per eenheid","aantal","totaal"]
[null,null,"garderoberek, 20 haken","per stuk",8.5,null,{"$f":"F16*E16","v":0}]
[null,null,"garderoberek, 40 haken","per stuk",14.5,null,{"$f":"F17*E17","v":0}]
[null,null,"garderoberek, 60 haken","per stuk",17.5,null,0]
[null,null,"garderoberek 100 haken","per stuk",24.5,null,0]
[null,null,"kamerscherm 200/100","per stuk",10,null,0]
[null,null,"afscheidingskoord rood","per meter",2,null,0]
[null,null,"plantenbak vast","per stuk",7.5,null,0]
[null,null,"plantenbak met wieltjes","per stuk",9.5,null,0]

{"sheet":"bestellijst","index":7,"n_rows":80,"n_cols":10,"rows_kept":80,"cut":false,"hidden":false,"merged":[[63,2,63,3],[64,2,64,3],[65,2,65,3],[66,2,66,3],[58,2,58,3],[59,2,59,3],[60,2,60,3],[61,2,61,3],[62,2,62,3],[34,2,34,3],[35,2,35,3],[53,2,53,3],[56,2,56,3],[57,2,57,3],[42,2,42,3],[43,2,43,3],[45,2,45,3],[46,2,46,3],[52,2,52,3],[44,2,44,3],[39,2,39,3],[50,2,50,3],[51,2,51,3],[47,2,47,3],[48,2,48,3],[33,2,33,3],[16,2,16,3],[2,3,2,4],[3,3,3,4],[5,2,5,7],[8,2,8,3],[9,2,9,3],[10,2,10,3],[11,2,11,3],[12,2,12,3],[13,2,13,3],[14,2,14,3],[15,2,15,3],[49,2,49,3],[17,2,17,3],[21,2,21,3],[36,2,36,3],[37,2,37,3],[38,2,38,3],[18,2,18,3],[22,2,22,3],[23,2,23,3],[24,2,24,3],[25,2,25,3],[26,2,26,3],[27,2,27,3],[28,2,28,3],[31,2,31,3],[32,2,32,3],[74,2,74,3],[75,2,75,3],[76,2,76,3],[77,2,77,3],[69,2,69,3],[70,2,70,3],[71,2,71,3],[72,2,72,3],[73,2,73,3]]}
[]
[]
[null,null,"Kandidaatnaam:"]
[null,null,"Kandidaatnummer:"]
[]
[null,null,"Bestellijst"]
[]
[null,null,{"$f":"Meubilair!C3","v":"Meubilair"},null,null,null,null,null,null,{"$f":"COUNTIF($J$10:$J$19,TRUE)>0","v":false}]
[null,null,{"$f":"Meubilair!C15","v":"artikel"},null,{"$f":"Meubilair!D15","v":"eenheid"},{"$f":"Meubilair!E15","v":"prijs per eenheid"},{"$f":"Meubilair!F15","v":"aantal"},{"$f":"Meubilair!G15","v":"totaal"},null,{"$f":"COUNTIF($J$10:$J$19,TRUE)>0","v":false}]
[null,null,{"$f":"Meubilair!C16","v":"tafel rechthoek standaard (2 personen)"},null,{"$f":"Meubilair!D16","v":"per stuk"},{"$f":"Meubilair!E16","v":10.3},{"$f":"Meubilair!F16","v":0},{"$f":"Meubilair!G16","v":0},null,{"$f":"IFERROR(H10>0,TRUE)","v":false}]
[null,null,{"$f":"Meubilair!C17","v":"tafel rechthoek gold (2 personen)"},null,{"$f":"Meubilair!D17","v":"per stuk"},{"$f":"Meubilair!E17","v":11.15},{"$f":"Meubilair!F17","v":0},{"$f":"Meubilair!G17","v":0},null,{"$f":"IFERROR(H11>0,TRUE)","v":false}]
[null,null,{"$f":"Meubilair!C18","v":"tafel rechthoek standaard (4 personen)"},null,{"$f":"Meubilair!D18","v":"per stuk"},{"$f":"Meubilair!E18","v":12.8},{"$f":"Meubilair!F18","v":0},{"$f":"Meubilair!G18","v":0},null,false]
[null,null,{"$f":"Meubilair!C19","v":"tafel rechthoek gold (4 personen)"},null,{"$f":"Meubilair!D19","v":"per stuk"},{"$f":"Meubilair!E19","v":13.6},{"$f":"Meubilair!F19","v":0},{"$f":"Meubilair!G19","v":0},null,false]
[null,null,{"$f":"Meubilair!C20","v":"tafel rond standaard (6 personen)"},null,{"$f":"Meubilair!D20","v":"per stuk"},{"$f":"Meubilair!E20","v":15.5},{"$f":"Meubilair!F20","v":0},{"$f":"Meubilair!G20","v":0},null,false]
[null,null,{"$f":"Meubilair!C21","v":"tafel rond gold (6 personen)"},null,{"$f":"Meubilair!D21","v":"per stuk"},{"$f":"Meubilair!E21","v":16.399999999999999},{"$f":"Meubilair!F21","v":0},{"$f":"Meubilair!G21","v":0},null,false]
[null,null,{"$f":"Meubilair!C22","v":"stoel Evi met armleuning (stapelbaar)"},null,{"$f":"Meubilair!D22","v":"per stuk"},{"$f":"Meubilair!E22","v":4.2},{"$f":"Meubilair!F22","v":0},{"$f":"Meubilair!G22","v":0},null,false]
[null,null,{"$f":"Meubilair!C23","v":"stoel Evi zonder armleuning (stapelbaar)"},null,{"$f":"Meubilair!D23","v":"per stuk"},{"$f":"Meubilair!E23","v":3.2},{"$f":"Meubilair!F23","v":0},{"$f":"Meubilair!G23","v":0},null,false]
[null,null,{"$f":"Meubilair!C24","v":"stoel Ara met armleuning (stapelbaar)"},null,{"$f":"Meubilair!D24","v":"per stuk"},{"$f":"Meubilair!E24","v":4.0999999999999996},{"$f":"Meubilair!F24","v":0},{"$f":"Meubilair!G24","v":0},null,false]
[null,null,{"$f":"Meubilair!C25","v":"stoel Ara zonder armleuning (stapelbaar)"},null,{"$f":"Meubilair!D25","v":"per stuk"},{"$f":"Meubilair!E25","v":3.1},{"$f":"Meubilair!F25","v":0},{"$f":"Meubilair!G25","v":0},null,false]
[null,null,null,null,null,null,null,null,null,{"$f":"COUNTIF($J$10:$J$19,TRUE)>0","v":false}]
[null,null,{"$f":"Tafellinnen!C3","v":"Tafellinnen"},null,null,null,null,null,null,{"$f":"COUNTIF($J$23:$J$29,TRUE)>0","v":false}]
[null,null,{"$f":"Tafellinnen!C15","v":"artikel"},null,{"$f":"Tafellinnen!D15","v":"eenheid"},{"$f":"Tafellinnen!E15","v":"prijs per eenheid"},{"$f":"Tafellinnen!F15","v":"aantal"},{"$f":"Tafellinnen!G15","v":"totaal"},null,{"$f":"COUNTIF($J$23:$J$29,TRUE)>0","v":false}]
[null,null,{"$f":"Tafellinnen!C16","v":"servetten papier (20/20 cm)"},null,{"$f":"Tafellinnen!D16","v":"100 stuks"},{"$f":"Tafellinnen!E16","v":1.6},{"$f":"Tafellinnen!F16","v":0},{"$f":"Tafellinnen!G16","v":0},null,{"$f":"IFERROR(H23>0,TRUE)","v":false}]
[null,null,{"$f":"Tafellinnen!C17","v":"servetten papier (30/30 cm)"},null,{"$f":"Tafellinnen!D17","v":"80 stuks"},{"$f":"Tafellinnen!E17","v":2.35},{"$f":"Tafellinnen!F17","v":0},{"$f":"Tafellinnen!G17","v":0},null,false]
[null,null,{"$f":"Tafellinnen!C18","v":"servetten linnen (25/25 cm)"},null,{"$f":"Tafellinnen!D18","v":"20 stuks"},{"$f":"Tafellinnen!E18","v":22},{"$f":"Tafellinnen!F18","v":0},{"$f":"Tafellinnen!G18","v":0},null,false]
[null,null,{"$f":"Tafellinnen!C19","v":"servetten linnen (30/30 cm)"},null,{"$f":"Tafellinnen!D19","v":"20 stuks"},{"$f":"Tafellinnen!E19","v":28},{"$f":"Tafellinnen!F19","v":0},{"$f":"Tafellinnen!G19","v":0},null,false]
[null,null,{"$f":"Tafellinnen!C20","v":"tafellakens linnen (120/120 cm)"},null,{"$f":"Tafellinnen!D20","v":"5 stuks"},{"$f":"Tafellinnen!E20","v":22.4},{"$f":"Tafellinnen!F20","v":0},{"$f":"Tafellinnen!G20","v":0},null,false]
[null,null,{"$f":"Tafellinnen!C21","v":"tafellaken linnen (120/160 cm)"},null,{"$f":"Tafellinnen!D21","v":"5 stuks"},{"$f":"Tafellinnen!E21","v":24.6},{"$f":"Tafellinnen!F21","v":0},{"$f":"Tafellinnen!G21","v":0},null,false]
[null,null,{"$f":"Tafellinnen!C22","v":"tafellaken linnen (120/180 cm)"},null,{"$f":"Tafellinnen!D22","v":"5 stuks"},{"$f":"Tafellinnen!E22","v":26.75},{"$f":"Tafellinnen!F22","v":0},{"$f":"Tafellinnen!G22","v":0},null,false]
[null,null,null,null,null,null,null,null,null,{"$f":"COUNTIF($J$23:$J$29,TRUE)>0","v":false}]
[null,null,{"$f":"Glaswerk!C3","v":"Glaswerk"},null,null,null,null,null,null,{"$f":"COUNTIF($J$33:$J$40,TRUE)>0","v":false}]
[null,null,{"$f":"Glaswerk!C15","v":"artikel"},null,{"$f":"Glaswerk!D15","v":"eenheid"},{"$f":"Glaswerk!E15","v":"prijs per eenheid"},{"$f":"Glaswerk!F15","v":"aantal"},{"$f":"Glaswerk!G15","v":"totaal"},null,{"$f":"COUNTIF($J$33:$J$40,TRUE)>0","v":false}]
[null,null,{"$f":"Glaswerk!C16","v":"limonadeglas Victor (23 cl)"},null,{"$f":"Glaswerk!D16","v":"20 stuks"},{"$f":"Glaswerk!E16","v":4},{"$f":"Glaswerk!F16","v":0},{"$f":"Glaswerk!G16","v":0},null,{"$f":"IFERROR(H33>0,TRUE)","v":false}]
[null,null,{"$f":"Glaswerk!C17","v":"limonadeglas Demi 3 (5 cl)"},null,{"$f":"Glaswerk!D17","v":"16 stuks"},{"$f":"Glaswerk!E17","v":4.2},{"$f":"Glaswerk!F17","v":0},{"$f":"Glaswerk!G17","v":0},null,false]
[null,null,{"$f":"Glaswerk!C18","v":"waterglas blauw (32 cl)"},null,{"$f":"Glaswerk!D18","v":"16 stuks"},{"$f":"Glaswerk!E18","v":3.8},{"$f":"Glaswerk!F18","v":0},{"$f":"Glaswerk!G18","v":0},null,false]
[null,null,{"$f":"Glaswerk!C19","v":"waterglas groen (32 cl)"},null,{"$f":"Glaswerk!D19","v":"20 stuks"},{"$f":"Glaswerk!E19","v":4.2},{"$f":"Glaswerk!F19","v":0},{"$f":"Glaswerk!G19","v":0},null,false]
[null,null,{"$f":"Glaswerk!C20","v":"wijnglas Bordeaux (28 cl)"},null,{"$f":"Glaswerk!D20","v":"8 stuks"},{"$f":"Glaswerk!E20","v":6.4},{"$f":"Glaswerk!F20","v":0},{"$f":"Glaswerk!G20","v":0},null,false]
[null,null,{"$f":"Glaswerk!C21","v":"wijnglas Bourgogne (40 cl)"},null,{"$f":"Glaswerk!D21","v":"8 stuks"},{"$f":"Glaswerk!E21","v":7.2},{"$f":"Glaswerk!F21","v":0},{"$f":"Glaswerk!G21","v":0},null,false]
[null,null,{"$f":"Glaswerk!C22","v":"waterkaraf Plaza (½ liter)"},null,{"$f":"Glaswerk!D22","v":"1 stuks"},{"$f":"Glaswerk!E22","v":1.25},{"$f":"Glaswerk!F22","v":0},{"$f":"Glaswerk!G22","v":0},null,false]
[null,null,{"$f":"Glaswerk!C23","v":"waterkaraf Plaza (1 liter)"},null,{"$f":"Glaswerk!D23","v":"1 stuks"},{"$f":"Glaswerk!E23","v":1.75},{"$f":"Glaswerk!F23","v":0},{"$f":"Glaswerk!G23","v":0},null,false]
[null,null,null,null,null,null,null,null,null,{"$f":"COUNTIF($J$33:$J$40,TRUE)>0","v":false}]
[null,null,{"$f":"Bestek!C3","v":"Bestek"},null,null,null,null,null,null,{"$f":"COUNTIF($J$44:$J$54,TRUE)>0","v":false}]
[null,null,{"$f":"Bestek!C15","v":"artikel"},null,{"$f":"Bestek!D15","v":"eenheid"},{"$f":"Bestek!E15","v":"prijs per eenheid"},{"$f":"Bestek!F15","v":"aantal"},{"$f":"Bestek!G15","v":"totaal"},null,{"$f":"COUNTIF($J$44:$J$54,TRUE)>0","v":false}]
[null,null,{"$f":"Bestek!C16","v":"mes medium"},null,{"$f":"Bestek!D16","v":"10 stuks"},{"$f":"Bestek!E16","v":1.8},{"$f":"Bestek!F16","v":0},{"$f":"Bestek!G16","v":0},null,{"$f":"IFERROR(H44>0,TRUE)","v":false}]
[null,null,{"$f":"Bestek!C17","v":"mes groot"},null,{"$f":"Bestek!D17","v":"10 stuks"},{"$f":"Bestek!E17","v":1.9},{"$f":"Bestek!F17","v":0},{"$f":"Bestek!G17","v":0},null,false]
[null,null,{"$f":"Bestek!C18","v":"vork medium"},null,{"$f":"Bestek!D18","v":"10 stuks"},{"$f":"Bestek!E18","v":1.8},{"$f":"Bestek!F18","v":0},{"$f":"Bestek!G18","v":0},null,false]
[null,null,{"$f":"Bestek!C19","v":"vork groot"},null,{"$f":"Bestek!D19","v":"10 stuks"},{"$f":"Bestek!E19","v":1.9},{"$f":"Bestek!F19","v":0},{"$f":"Bestek!G19","v":0},null,false]
[null,null,{"$f":"Bestek!C20","v":"mes en vork medium"},null,{"$f":"Bestek!D20","v":"per set"},{"$f":"Bestek!E20","v":0.32},{"$f":"Bestek!F20","v":0},{"$f":"Bestek!G20","v":0},null,false]
[null,null,{"$f":"Bestek!C21","v":"mes en vork groot"},null,{"$f":"Bestek!D21","v":"per set"},{"$f":"Bestek!E21","v":0.35},{"$f":"Bestek!F21","v":0},{"$f":"Bestek!G21","v":0},null,false]
[null,null,{"$f":"Bestek!C22","v":"lepel medium"},null,{"$f":"Bestek!D22","v":"10 stuks"},{"$f":"Bestek!E22","v":1.8},{"$f":"Bestek!F22","v":0},{"$f":"Bestek!G22","v":0},null,false]
[null,null,{"$f":"Bestek!C23","v":"lepel groot"},null,{"$f":"Bestek!D23","v":"10 stuks"},{"$f":"Bestek!E23","v":1.9},{"$f":"Bestek!F23","v":0},{"$f":"Bestek!G23","v":0},null,false]
[null,null,{"$f":"Bestek!C24","v":"dessertmes"},null,{"$f":"Bestek!D24","v":"10 stuks"},{"$f":"Bestek!E24","v":1.4},{"$f":"Bestek!F24","v":0},{"$f":"Bestek!G24","v":0},null,false]
[null,null,{"$f":"Bestek!C25","v":"dessertvork"},null,{"$f":"Bestek!D25","v":"10 stuks"},{"$f":"Bestek!E25","v":1.4},{"$f":"Bestek!F25","v":0},{"$f":"Bestek!G25","v":0},null,false]
[null,null,{"$f":"Bestek!C26","v":"dessertlepel"},null,{"$f":"Bestek!D26","v":"10 stuks"},{"$f":"Bestek!E26","v":1.4},{"$f":"Bestek!F26","v":0},{"$f":"Bestek!G26","v":0},null,false]
[null,null,null,null,null,null,null,null,null,{"$f":"COUNTIF($J$44:$J$54,TRUE)>0","v":false}]
[null,null,{"$f":"Servies!C3","v":"Servies"},null,null,null,null,null,null,{"$f":"COUNTIF($J$58:$J$67,TRUE)>0","v":false}]
[null,null,{"$f":"Servies!C15","v":"artikel"},null,{"$f":"Servies!D15","v":"eenheid"},{"$f":"Servies!E15","v":"prijs per eenheid"},{"$f":"Servies!F15","v":"aantal"},{"$f":"Servies!G15","v":"totaal"},null,{"$f":"COUNTIF($J$58:$J$67,TRUE)>0","v":false}]
[null,null,{"$f":"Servies!C16","v":"side-plate porselein (ø 12 cm)"},null,{"$f":"Servies!D16","v":"per stuk"},{"$f":"Servies!E16","v":0.22},{"$f":"Servies!F16","v":0},{"$f":"Servies!G16","v":0},null,{"$f":"IFERROR(H58>0,TRUE)","v":false}]
[null,null,{"$f":"Servies!C17","v":"plat bord porselein (ø 22 cm)"},null,{"$f":"Servies!D17","v":"per stuk"},{"$f":"Servies!E17","v":0.25},{"$f":"Servies!F17","v":0},{"$f":"Servies!G17","v":0},null,false]
[null,null,{"$f":"Servies!C18","v":"plat bord porselein (ø 26 cm)"},null,{"$f":"Servies!D18","v":"per stuk"},{"$f":"Servies!E18","v":0.28000000000000003},{"$f":"Servies!F18","v":0},{"$f":"Servies!G18","v":0},null,false]
[null,null,{"$f":"Servies!C19","v":"diep bord porselein (ø 26 cm)"},null,{"$f":"Servies!D19","v":"per stuk"},{"$f":"Servies!E19","v":0.28000000000000003},{"$f":"Servies!F19","v":0},{"$f":"Servies!G19","v":0},null,false]
[null,null,{"$f":"Servies!C20","v":"schaaltje porselein (ø 16 cm)"},null,{"$f":"Servies!D20","v":"per stuk"},{"$f":"Servies!E20","v":0.45},{"$f":"Servies!F20","v":0},{"$f":"Servies!G20","v":0},null,false]
[null,null,{"$f":"Servies!C21","v":"saucière porselein"},null,{"$f":"Servies!D21","v":"per stuk"},{"$f":"Servies!E21","v":0.5},{"$f":"Servies!F21","v":0},{"$f":"Servies!G21","v":0},null,false]
[null,null,{"$f":"Servies!C22","v":"bord terracotta (ø 22 cm)"},null,{"$f":"Servies!D22","v":"per stuk"},{"$f":"Servies!E22","v":0.45},{"$f":"Servies!F22","v":0},{"$f":"Servies!G22","v":0},null,false]
[null,null,{"$f":"Servies!C23","v":"schaaltje terracotta (ø 16 cm)"},null,{"$f":"Servies!D23","v":"per stuk"},{"$f":"Servies!E23","v":0.65},{"$f":"Servies!F23","v":0},{"$f":"Servies!G23","v":0},null,false]
[null,null,{"$f":"Servies!C24","v":"schaaltje terracotta (ø 18 cm)"},null,{"$f":"Servies!D24","v":"per stuk"},{"$f":"Servies!E24","v":0.75},{"$f":"Servies!F24","v":0},{"$f":"Servies!G24","v":0},null,false]
[null,null,{"$f":"Servies!C25","v":"saucière terracotta"},null,{"$f":"Servies!D25","v":"per stuk"},{"$f":"Servies!E25","v":0.7},{"$f":"Servies!F25","v":0},{"$f":"Servies!G25","v":0},null,false]
[null,null,null,null,null,null,null,null,null,{"$f":"COUNTIF($J$58:$J$67,TRUE)>0","v":false}]
[null,null,{"$f":"Overig!C3","v":"Overig"},null,null,null,null,null,null,{"$f":"COUNTIF($J$71:$J$78,TRUE)>0","v":false}]
[null,null,{"$f":"Overig!C15","v":"artikel"},null,{"$f":"Overig!D15","v":"eenheid"},{"$f":"Overig!E15","v":"prijs per eenheid"},{"$f":"Overig!F15","v":"aantal"},{"$f":"Overig!G15","v":"totaal"},null,{"$f":"COUNTIF($J$71:$J$78,TRUE)>0","v":false}]
[null,null,{"$f":"Overig!C16","v":"garderoberek, 20 haken"},null,{"$f":"Overig!D16","v":"per stuk"},{"$f":"Overig!E16","v":8.5},{"$f":"Overig!F16","v":0},{"$f":"Overig!G16","v":0},null,{"$f":"IFERROR(H71>0,TRUE)","v":false}]
[null,null,{"$f":"Overig!C17","v":"garderoberek, 40 haken"},null,{"$f":"Overig!D17","v":"per stuk"},{"$f":"Overig!E17","v":14.5},{"$f":"Overig!F17","v":0},{"$f":"Overig!G17","v":0},null,false]
[null,null,{"$f":"Overig!C18","v":"garderoberek, 60 haken"},null,{"$f":"Overig!D18","v":"per stuk"},{"$f":"Overig!E18","v":17.5},{"$f":"Overig!F18","v":0},{"$f":"Overig!G18","v":0},null,false]
[null,null,{"$f":"Overig!C19","v":"garderoberek 100 haken"},null,{"$f":"Overig!D19","v":"per stuk"},{"$f":"Overig!E19","v":24.5},{"$f":"Overig!F19","v":0},{"$f":"Overig!G19","v":0},null,false]
[null,null,{"$f":"Overig!C20","v":"kamerscherm 200/100"},null,{"$f":"Overig!D20","v":"per stuk"},{"$f":"Overig!E20","v":10},{"$f":"Overig!F20","v":0},{"$f":"Overig!G20","v":0},null,false]
[null,null,{"$f":"Overig!C21","v":"afscheidingskoord rood"},null,{"$f":"Overig!D21","v":"per meter"},{"$f":"Overig!E21","v":2},{"$f":"Overig!F21","v":0},{"$f":"Overig!G21","v":0},null,false]
[null,null,{"$f":"Overig!C22","v":"plantenbak vast"},null,{"$f":"Overig!D22","v":"per stuk"},{"$f":"Overig!E22","v":7.5},{"$f":"Overig!F22","v":0},{"$f":"Overig!G22","v":0},null,false]
[null,null,{"$f":"Overig!C23","v":"plantenbak met wieltjes"},null,{"$f":"Overig!D23","v":"per stuk"},{"$f":"Overig!E23","v":9.5},{"$f":"Overig!F23","v":0},{"$f":"Overig!G23","v":0},null,false]
[]
[null,null,null,null,null,null,"totaal",{"$f":"SUM(H9:H78)","v":0}]